bitfinex/quotes_SOLUSD_20250525
["timestamp","ask_amount","ask_price","bid_price","bid_amount"]
[1748147459304,13.1121307,172.54,172.5,118.74]
[1748147460517,26.0,172.51,172.5,118.74]
[1748147460721,39.1121307,172.53,172.5,82.5]
[1748147462523,26.0,172.53,172.5,82.5]
[1748147463020,13.1121307,172.56,172.5,82.5]
[1748147463530,39.1121307,172.56,172.5,82.5]
[1748147464826,26.0,172.56,172.5,82.5]
[1748147466223,26.0,172.58,172.5,82.5]
[1748147466427,4.13631969,172.59,172.51,1.6659]
[1748147466637,4.13631969,172.59,172.53,6.3243]
[1748147466937,4.13631969,172.59,172.55,1.6659]
[1748147467110,4.13631969,172.59,172.56,34.7]
[1748147467611,4.13631969,172.59,172.57,36.24]
[1748147468311,12.63685399,172.66,172.57,36.24]
[1748147468626,12.63685399,172.66,172.57,40.94203415]
[1748147468927,12.63685399,172.67,172.57,18.64964886]
[1748147469315,16.77317368,172.68,172.57,18.64964886]
[1748147469527,38.63685399,172.68,172.57,18.64964886]
[1748147470031,10.24601969,172.71,172.57,44.64964886]
[1748147470236,16.77317368,172.71,172.59,18.64964886]
[1748147470430,12.63685399,172.7,172.59,18.64964886]
[1748147470738,38.63685399,172.7,172.59,18.64964886]
[1748147471234,12.63685399,172.69,172.59,18.64964886]
[1748147471916,12.63685399,172.68,172.59,18.64964886]
[1748147472433,12.63685399,172.67,172.6,34.68]
[1748147472632,12.63685399,172.67,172.6,117.18]
[1748147474411,12.63685399,172.66,172.6,117.18]
[1748147475834,12.63685399,172.64,172.61,34.68]
[1748147476216,12.63685399,172.64,172.58,84.088]
[1748147476513,12.63685399,172.68,172.59,34.68]
[1748147476514,12.63685399,172.63,172.59,34.68]
[1748147476719,12.63685399,172.63,172.59,117.18]
[1748147477657,12.63685399,172.64,172.6,119.44]
[1748147478626,26.0,172.67,172.6,36.22]
[1748147478833,12.63685399,172.68,172.6,120.3721]
[1748147479031,12.63685399,172.68,172.6,84.1521]
[1748147480632,12.63685399,172.69,172.6,84.1521]
[1748147481769,12.63685399,172.67,172.6,84.1521]
[1748147484666,12.63685399,172.68,172.6,84.1521]
[1748147485455,12.63685399,172.67,172.6,84.1521]
[1748147485762,12.63685399,172.66,172.6,84.1521]
[1748147485949,12.63685399,172.66,172.61,34.68]
[1748147487457,26.0,172.7,172.62,119.4]
[1748147487645,12.63685399,172.67,172.62,119.4]
[1748147488183,12.63685399,172.63,172.6,82.5]
[1748147488551,12.63685399,172.62,172.61,34.68]
[1748147489563,1.545,172.66,172.61,34.68]
[1748147489564,12.63685399,172.63,172.61,34.68]
[1748147490971,12.63685399,172.63,172.6,82.5]
[1748147491267,12.63685399,172.63,172.61,34.68]
[1748147491675,12.63685399,172.62,172.6,82.5]
[1748147491849,12.63685399,172.62,172.61,34.68]
[1748147492675,12.63685399,172.62,172.56,82.5]
[1748147492851,12.63685399,172.6,172.57,34.68]
[1748147493772,12.63685399,172.62,172.57,34.68]
[1748147494353,12.63685399,172.63,172.57,34.68]
[1748147494651,12.63685399,172.64,172.57,117.18]
[1748147496478,1.545,172.66,172.57,117.18]
[1748147496657,12.63685399,172.64,172.57,117.18]
[1748147497473,12.63685399,172.64,172.58,119.42]
[1748147498663,1.5379,172.7,172.58,201.92]
[1748147498859,12.63685399,172.68,172.58,201.92]
[1748147499174,4.13631969,172.72,172.62,26.0]
[1748147499391,4.13631969,172.72,172.63,34.68]
[1748147499558,4.13631969,172.72,172.64,1.6232]
[1748147500583,12.63685399,172.73,172.64,1.6232]
[1748147500966,12.63685399,172.74,172.64,90.7621]
[1748147502567,12.63685399,172.73,172.64,90.7621]
[1748147504884,12.63685399,172.69,172.64,84.1232]
[1748147505091,12.77901556,172.74,172.64,82.46622819]
[1748147505092,12.63685399,172.68,172.64,82.46622819]
[1748147505695,12.63685399,172.67,172.64,82.46622819]
[1748147506384,12.63685399,172.67,172.65,34.68]
[1748147506681,12.63685399,172.67,172.64,82.46622819]
[1748147506880,0.14216157,172.71,172.65,34.68]
[1748147507092,12.63685399,172.67,172.65,34.68]
[1748147507389,12.63685399,172.69,172.65,34.68]
[1748147507569,12.63685399,172.69,172.66,119.4]
[1748147507771,12.63685399,172.69,172.66,36.2]
[1748147510897,4.13631969,172.73,172.66,36.2]
[1748147510898,12.63685399,172.68,172.66,36.2]
[1748147511072,12.63685399,172.68,172.65,117.14622819]
[1748147514204,30.13631969,172.73,172.65,117.14622819]
[1748147514374,12.63685399,172.72,172.65,117.14622819]
[1748147514583,30.13631969,172.73,172.65,117.14622819]
[1748147514783,42.77317368,172.73,172.65,117.14622819]
[1748147514990,12.63685399,172.72,172.65,117.14622819]
[1748147515413,16.77317368,172.73,172.65,117.14622819]
[1748147516510,12.63685399,172.74,172.65,117.14622819]
[1748147516688,12.63685399,172.73,172.65,117.14622819]
[1748147517593,12.63685399,172.73,172.66,119.38]
[1748147519004,12.63685399,172.72,172.66,119.38]
[1748147520411,33.73896157,172.76,172.65,143.14622819]
[1748147520412,12.63685399,172.7,172.65,82.46622819]
[1748147520588,12.63685399,172.67,172.62,82.46622819]
[1748147520794,12.63685399,172.67,172.63,34.66]
[1748147521283,12.63685399,172.67,172.64,34.66]
[1748147521489,44.79181043,172.73,172.6,1.5306]
[1748147521490,12.63685399,172.66,172.65,34.66]
[1748147521801,12.63685399,172.66,172.6,83.99682819]
[1748147521999,12.63685399,172.64,172.61,34.66]
[1748147522202,0.14216157,172.68,172.61,34.66]
[1748147522394,12.63685399,172.64,172.61,34.66]
[1748147523883,7.6642,172.69,172.61,34.66]
[1748147523884,12.63685399,172.66,172.61,34.66]
[1748147524107,12.63685399,172.67,172.61,34.66]
[1748147525819,12.63685399,172.65,172.61,34.66]
[1748147526019,12.63685399,172.64,172.61,34.66]
[1748147526494,12.63685399,172.68,172.61,34.66]
[1748147526813,4.13631969,172.71,172.64,26.0]
[1748147527110,16.77317368,172.71,172.64,108.46622819]
[1748147527507,12.63685399,172.71,172.65,119.38]
[1748147527711,12.63685399,172.71,172.66,34.66]
[1748147528813,12.63685399,172.72,172.66,34.66]
[1748147529517,0.14216157,172.74,172.66,34.66]
[1748147529728,12.63685399,172.73,172.66,34.66]
[1748147529928,16.77317368,172.75,172.66,117.12622819]
[1748147531307,12.63685399,172.74,172.66,117.12622819]
[1748147531491,12.63685399,172.73,172.66,117.12622819]
[1748147534000,26.14216157,172.76,172.66,117.12622819]
[1748147534200,12.63685399,172.73,172.66,117.12622819]
[1748147535223,12.63685399,172.74,172.66,117.12622819]
[1748147535924,12.63685399,172.73,172.67,1.6017]
[1748147536104,12.63685399,172.72,172.66,82.46622819]
[1748147536426,12.63685399,172.71,172.67,34.66]
[1748147536725,12.63685399,172.71,172.67,117.12622819]
[1748147537631,12.63685399,172.71,172.68,119.36]
[1748147538635,12.63685399,172.72,172.68,119.36]
[1748147538944,38.63685399,172.73,172.68,36.18]
[1748147539235,26.0,172.73,172.68,118.64622819]
[1748147539529,12.63685399,172.74,172.68,82.46622819]
[1748147540811,38.63685399,172.73,172.68,82.46622819]
[1748147541119,12.63685399,172.74,172.68,82.46622819]
[1748147543427,38.63685399,172.74,172.68,82.46622819]
[1748147545827,12.63685399,172.73,172.68,82.46622819]
[1748147546125,12.63685399,172.72,172.69,34.66]
[1748147547529,12.63685399,172.72,172.7,119.36]
[1748147548124,12.63685399,172.71,172.7,119.36]
[1748147548336,12.63685399,172.72,172.7,119.36]
[1748147549527,12.63685399,172.72,172.7,36.18]
[1748147549847,1.6563,172.76,172.69,34.66]
[1748147550033,26.0,172.74,172.69,117.12622819]
[1748147552735,12.63685399,172.75,172.69,117.12622819]
[1748147552911,4.27848126,172.78,172.69,118.66762819]
[1748147552912,26.0,172.76,172.69,118.66762819]
[1748147554125,4.13631969,172.79,172.69,118.66762819]
[1748147554317,4.13631969,172.79,172.7,18.64964886]
[1748147554634,4.13631969,172.79,172.7,237.11587705]
[1748147555339,4.13631969,172.79,172.72,18.64964886]
[1748147555517,4.13631969,172.79,172.73,34.66]
[1748147555749,4.13631969,172.79,172.73,117.12622819]
[1748147555923,12.63685399,172.8,172.73,117.12622819]
[1748147556836,26.0,172.83,172.73,117.12622819]
[1748147557218,12.63685399,172.81,172.73,117.12622819]
[1748147557539,12.63685399,172.81,172.74,119.34]
[1748147558142,12.63685399,172.8,172.74,119.34]
[1748147560443,12.63685399,172.8,172.73,117.12622819]
[1748147562342,12.63685399,172.81,172.73,117.12622819]
[1748147563942,12.63685399,172.8,172.74,34.66]
[1748147566846,12.63685399,172.8,172.74,117.12622819]
[1748147567534,12.63685399,172.8,172.75,119.3]
[1748147568142,12.63685399,172.81,172.75,119.3]
[1748147568341,12.63685399,172.81,172.75,36.16]
[1748147568737,26.0,172.83,172.74,117.12622819]
[1748147568738,12.63685399,172.82,172.74,117.12622819]
[1748147568936,26.0,172.83,172.74,117.12622819]
[1748147569137,12.63685399,172.81,172.74,117.12622819]
[1748147570328,26.0,172.85,172.74,117.12622819]
[1748147570546,12.63685399,172.81,172.74,117.12622819]
[1748147571161,30.56306855,172.88,172.74,117.12622819]
[1748147571350,26.0,172.85,172.76,18.64964886]
[1748147571541,26.0,172.85,172.77,6.0948]
[1748147571745,26.0,172.85,172.78,34.64]
[1748147572048,26.0,172.85,172.78,117.10622819]
[1748147572960,38.63685399,172.85,172.78,117.10622819]
[1748147575979,12.63685399,172.84,172.78,117.10622819]
[1748147576140,26.0,172.85,172.78,117.10622819]
[1748147576337,12.63685399,172.84,172.78,117.10622819]
[1748147577534,12.63685399,172.84,172.79,119.3]
[1748147580361,12.63685399,172.84,172.78,117.10622819]
[1748147581058,26.0,172.86,172.78,117.10622819]
[1748147581238,12.63685399,172.87,172.78,117.10622819]
[1748147581748,12.63685399,172.86,172.78,117.10622819]
[1748147582062,12.63685399,172.85,172.78,117.10622819]
[1748147582233,12.63685399,172.86,172.78,117.10622819]
[1748147584568,26.0,172.88,172.78,117.10622819]
[1748147584769,38.63685399,172.88,172.78,117.10622819]
[1748147585571,12.63685399,172.83,172.78,82.46622819]
[1748147585795,12.63685399,172.82,172.79,34.64]
[1748147586800,12.63685399,172.83,172.79,34.64]
[1748147587603,12.63685399,172.83,172.8,119.28]
[1748147589882,12.63685399,172.83,172.8,36.16]
[1748147590393,12.63685399,172.84,172.8,36.16]
[1748147590711,12.63685399,172.83,172.8,36.16]
[1748147591512,12.63685399,172.84,172.8,36.16]
[1748147591697,12.63685399,172.85,172.8,118.62622819]
[1748147592006,12.63685399,172.85,172.8,82.46622819]
[1748147594002,26.0,172.87,172.8,82.46622819]
[1748147594223,4.13631969,172.89,172.81,1.6002]
[1748147594383,4.13631969,172.89,172.83,26.0]
[1748147594582,4.13631969,172.9,172.84,34.64]
[1748147594789,4.13631969,172.9,172.84,117.10622819]
[1748147596806,12.63685399,172.91,172.84,117.10622819]
[1748147597515,12.63685399,172.91,172.85,119.26]
[1748147599282,12.63685399,172.91,172.85,201.72622819]
[1748147599993,26.0,172.89,172.85,118.60622819]
[1748147600310,26.0,172.89,172.85,82.46622819]
[1748147601224,26.0,172.93,172.85,82.46622819]
[1748147601437,4.13631969,172.94,172.86,1.6558]
[1748147601595,4.13631969,172.94,172.87,18.64964886]
[1748147601925,4.13631969,172.94,172.88,34.64]
[1748147602722,12.63685399,172.97,172.88,34.64]
[1748147602923,12.63685399,172.98,172.88,34.64]
[1748147603120,12.63685399,172.98,172.89,18.64964886]
[1748147603317,12.63685399,172.99,172.89,18.64964886]
[1748147603525,38.63685399,173.0,172.89,18.64964886]
[1748147603828,12.63685399,172.99,172.89,18.64964886]
[1748147605332,12.63685399,172.98,172.89,18.64964886]
[1748147605507,12.63685399,172.97,172.89,18.64964886]
[1748147606210,12.63685399,172.98,172.89,18.64964886]
[1748147606921,12.63685399,172.99,172.89,237.11587705]
[1748147607515,12.63685399,172.99,172.9,119.28]
[1748147608829,26.0,173.0,172.9,119.28]
[1748147609035,12.63685399,172.99,172.9,119.28]
[1748147611046,12.63685399,172.99,172.9,201.74622819]
[1748147611411,12.63685399,172.99,172.9,82.46622819]
[1748147614537,38.63685399,173.0,172.9,82.46622819]
[1748147615340,12.63685399,173.0,172.9,108.46622819]
[1748147616455,12.63685399,173.0,172.91,1.6082]
[1748147616971,12.63685399,173.0,172.91,90.31262819]
[1748147617241,12.05261474,173.04,172.91,90.31262819]
[1748147617428,31.65691474,173.04,172.91,90.31262819]
[1748147617630,12.63685399,173.04,172.95,26.0]
[1748147617947,12.63685399,173.02,172.96,34.62]
[1748147619017,26.0,173.05,172.96,34.62]
[1748147619223,12.63685399,173.02,172.96,34.62]
[1748147619725,12.13685399,173.02,172.96,34.62]
[1748147621749,26.0,173.05,172.95,108.46622819]
[1748147621956,12.63685399,173.02,172.97,34.6]
[1748147622148,12.63685399,173.03,172.97,34.6]
[1748147622931,12.63685399,173.03,172.97,117.06622819]
[1748147624551,12.63685399,173.02,172.97,117.06622819]
[1748147624846,1.5344,173.09,172.97,118.61622819]
[1748147625025,12.63685399,173.08,172.98,26.0]
[1748147625738,12.63685399,173.07,172.98,26.0]
[1748147627653,12.63685399,173.07,172.99,119.22]
[1748147628245,1.5344,173.09,172.99,119.22]
[1748147628551,12.63685399,173.08,172.99,36.18]
[1748147628855,12.63685399,173.08,172.98,26.0]
[1748147629238,12.63685399,173.06,172.98,26.0]
[1748147632063,12.63685399,173.07,172.98,26.0]
[1748147637467,12.63685399,173.07,172.99,119.14]
[1748147638055,12.63685399,173.03,172.98,108.46622819]
[1748147638253,12.63685399,173.03,172.99,34.6]
[1748147638951,1.5344,173.09,172.99,117.06622819]
[1748147639157,12.63685399,173.08,172.99,117.06622819]
[1748147640577,12.63685399,173.06,172.99,117.06622819]
[1748147642468,12.63685399,173.05,172.99,117.06622819]
[1748147643282,12.63685399,173.06,172.99,117.06622819]
[1748147643481,12.56717119,173.06,173.01,12.56717119]
[1748147644374,1.5344,173.09,173.01,12.56717119]
[1748147644575,12.56717119,173.06,173.01,95.03339938]
[1748147646172,12.56717119,173.06,173.02,12.56717119]
[1748147647199,12.56717119,173.04,173.01,82.46622819]
[1748147647403,12.56717119,173.03,173.02,34.6]
[1748147647706,12.56717119,173.03,173.02,153.74]
[1748147647884,12.56717119,173.03,173.02,36.12]
[1748147648083,12.56717119,173.03,173.02,70.72]
[1748147648402,12.56717119,173.03,172.98,95.03339938]
[1748147648701,12.56717119,173.03,173.02,34.6]
[1748147655209,0.14216157,173.05,173.02,34.6]
[1748147655509,12.56717119,173.03,173.02,34.6]
[1748147657515,12.56717119,173.03,173.02,153.76]
[1748147660012,12.56717119,173.03,173.02,70.72]
[1748147661402,12.56717119,173.03,172.98,82.46622819]
[1748147661699,12.56717119,173.0,172.99,34.6]
[1748147663822,12.56717119,173.01,172.99,34.6]
[1748147665308,12.56717119,173.02,172.99,34.6]
[1748147667527,12.56717119,173.02,173.0,119.16]
[1748147667827,12.56717119,173.02,173.01,34.6]
[1748147672428,4.13631969,173.05,173.01,129.63339938]
[1748147672630,4.13631969,173.05,173.02,12.56717119]
[1748147673022,4.13631969,173.05,173.04,12.56717119]
[1748147673634,4.13631969,173.05,173.04,8.04079822]
[1748147674128,30.13631969,173.1,173.04,8.04079822]
[1748147674338,12.17711791,173.1,173.06,8.04079822]
[1748147675617,4.13631969,173.1,173.06,12.56045836]
[1748147675812,12.56045836,173.1,173.06,12.56045836]
[1748147676330,4.13631969,173.12,173.07,12.56045836]
[1748147676533,12.56045836,173.11,173.07,12.56045836]
[1748147677244,4.13631969,173.12,173.07,12.56045836]
[1748147677427,26.0,173.13,173.07,12.56045836]
[1748147677428,12.56045836,173.11,173.07,12.56045836]
[1748147677730,12.56045836,173.11,173.08,119.14]
[1748147677924,12.56045836,173.11,173.09,34.6]
[1748147678123,12.56045836,173.1,173.09,34.6]
[1748147678325,12.56045836,173.1,173.04,12.56045836]
[1748147678528,12.56045836,173.08,173.05,34.6]
[1748147680254,12.56045836,173.09,173.05,47.16045836]
[1748147681443,12.56045836,173.1,173.06,12.56045836]
[1748147681744,12.56045836,173.1,173.06,95.06045836]
[1748147685152,12.56045836,173.1,173.06,82.5]
[1748147687454,12.56045836,173.1,173.07,83.0]
[1748147687659,12.56045836,173.1,173.07,201.6]
[1748147688759,12.56045836,173.1,173.07,118.6]
[1748147689253,12.56045836,173.1,173.07,82.5]
[1748147689461,4.13631969,173.13,173.07,95.06045836]
[1748147689638,12.56045836,173.12,173.07,95.06045836]
[1748147691542,12.56045836,173.1,173.07,82.5]
[1748147691856,12.56045836,173.09,173.08,34.6]
[1748147692555,12.56045836,173.1,173.08,34.6]
[1748147692756,12.56045836,173.1,173.09,34.6]
[1748147697145,12.56045836,173.1,173.09,34.58]
[1748147697562,12.56045836,173.1,173.09,153.68]
[1748147699472,38.56045836,173.1,173.09,153.68]
[1748147699869,38.56045836,173.1,173.09,34.58]
[1748147700285,25.12091672,173.1,173.09,34.58]
[1748147700448,26.0,173.07,173.02,82.5]
[1748147700773,38.56045836,173.03,172.98,82.5]
[1748147700948,12.56045836,173.01,172.99,34.58]
[1748147701367,26.0,173.03,172.99,34.58]
[1748147701649,12.56045836,173.0,172.98,82.5]
[1748147701849,12.56045836,173.0,172.99,34.58]
[1748147702061,38.56045836,173.0,172.94,82.5]
[1748147702263,12.56045836,172.95,172.92,82.5]
[1748147702577,38.56045836,172.96,172.93,34.58]
[1748147703076,12.56045836,172.97,172.93,34.58]
[1748147703369,12.56045836,172.98,172.94,12.56045836]
[1748147703574,26.0,172.96,172.95,12.56045836]
[1748147704773,26.0,172.98,172.95,12.56045836]
[1748147704975,26.0,172.98,172.97,12.56045836]
[1748147705153,26.0,173.0,172.97,12.56045836]
[1748147706176,12.56045836,173.0,172.96,47.16045836]
[1748147706352,12.56045836,173.04,172.96,34.6]
[1748147706353,12.56045836,172.99,172.96,34.6]
[1748147706676,12.56045836,173.0,172.96,47.16045836]
[1748147707166,38.56045836,173.01,172.96,47.16045836]
[1748147707370,38.56045836,173.01,172.97,12.56045836]
[1748147707678,26.0,172.99,172.98,119.12]
[1748147707969,38.56045836,173.01,172.98,119.12]
[1748147708177,26.0,172.99,172.98,119.12]
[1748147708361,26.0,172.99,172.98,153.72]
[1748147710177,38.56045836,172.99,172.98,153.72]
[1748147710477,38.56045836,172.99,172.98,70.7]
[1748147710779,38.56045836,172.99,172.95,12.56045836]
[1748147711080,38.56045836,172.99,172.96,34.6]
[1748147711782,26.0,172.99,172.96,47.16045836]
[1748147713577,38.56045836,173.01,172.97,12.56045836]
[1748147716579,26.0,173.01,172.97,12.56045836]
[1748147717179,26.0,173.01,173.0,12.56045836]
[1748147717480,12.56045836,173.05,173.0,166.32045836]
[1748147717685,26.0,173.04,173.01,12.56045836]
[1748147717986,26.0,173.04,173.0,129.66045836]
[1748147718288,4.27848126,173.1,173.02,12.56045836]
[1748147718471,26.0,173.04,173.03,34.6]
[1748147720291,12.56045836,173.05,173.03,34.6]
[1748147720986,12.56045836,173.04,173.02,82.5]
[1748147721192,12.56045836,173.04,173.03,34.6]
[1748147721596,12.56045836,173.05,173.03,34.6]
[1748147722292,26.0,173.08,173.03,34.6]
[1748147722597,12.56045836,173.05,173.03,34.6]
[1748147722890,12.56045836,173.06,173.03,34.6]
[1748147724376,12.56045836,173.05,173.03,34.6]
[1748147726203,38.56045836,173.04,173.03,34.6]
[1748147727505,38.56045836,173.04,173.03,153.72]
[1748147727794,38.56045836,173.04,173.03,119.12]
[1748147727970,38.56045836,173.04,173.03,153.72]
[1748147728288,38.56045836,173.04,173.03,34.6]
[1748147730999,38.56045836,173.04,172.97,95.06045836]
[1748147731202,12.56045836,173.02,172.98,34.6]
[1748147731383,26.0,173.04,172.97,95.06045836]
[1748147731384,12.56045836,173.01,172.97,95.06045836]
[1748147731581,12.56045836,173.01,172.99,34.6]
[1748147733005,12.56045836,173.02,172.99,34.6]
[1748147733602,12.57282085,173.02,172.99,34.6]
[1748147733800,0.14216157,173.05,172.99,34.6]
[1748147734005,12.57282085,173.02,172.99,34.6]
[1748147736412,12.57282085,173.01,172.99,34.6]
[1748147737510,12.57282085,173.01,173.0,119.16]
[1748147740514,12.57282085,173.01,172.99,34.6]
[1748147741512,12.57282085,173.01,173.0,34.6]
[1748147745710,8.04741067,173.01,173.0,34.6]
[1748147747225,8.04741067,173.01,172.94,88.834]
[1748147747407,8.04741067,172.98,172.95,34.6]
[1748147747586,8.04741067,172.98,172.96,119.16]
[1748147747790,12.57764128,172.98,172.96,119.16]
[1748147751016,12.57764128,172.99,172.96,119.16]
[1748147751323,12.57764128,172.99,172.96,36.12]
[1748147753219,12.57764128,172.99,172.95,117.1]
[1748147756229,30.13631969,173.02,172.95,117.1]
[1748147756409,12.57764128,173.01,172.95,117.1]
[1748147756605,38.57764128,173.01,172.95,117.1]
[1748147757015,12.57764128,173.0,172.95,117.1]
[1748147757523,12.57764128,173.0,172.96,119.18]
[1748147760934,12.57764128,173.0,172.95,117.1]
[1748147762634,26.0,173.01,172.95,117.1]
[1748147762834,12.57764128,173.0,172.95,117.1]
[1748147767509,12.57764128,173.0,172.96,119.16]
[1748147767714,8.04847435,173.0,172.96,119.16]
[1748147769340,8.04847435,173.01,172.96,119.16]
[1748147769539,32.1938974,173.04,172.96,118.62]
[1748147769540,4.13631969,173.02,172.96,118.62]
[1748147769746,4.13631969,173.02,172.97,1.6202]
[1748147769937,4.13631969,173.02,172.98,34.6]
[1748147771339,12.18479404,173.05,172.98,34.6]
[1748147771526,4.13631969,173.05,172.98,117.1]
[1748147773850,16.70044747,173.08,172.98,117.1]
[1748147775348,12.56412778,173.07,172.98,117.1]
[1748147776354,4.13631969,173.08,172.98,117.1]
[1748147776656,12.56412778,173.07,172.98,117.1]
[1748147776828,12.56412778,173.05,172.98,117.1]
[1748147777029,12.56412778,173.03,172.99,34.6]
[1748147777427,26.0,173.07,172.99,34.6]
[1748147777623,12.56412778,173.04,173.0,119.14]
[1748147778132,12.56412778,173.05,173.0,119.14]
[1748147778337,12.56412778,173.05,172.99,34.6]
[1748147779050,12.56412778,173.05,172.99,117.1]
[1748147781751,12.56412778,173.04,172.99,117.1]
[1748147783034,4.13631969,173.07,172.99,117.1]
[1748147783237,30.13631969,173.07,172.99,117.1]
[1748147783436,12.56412778,173.04,172.99,117.1]
[1748147783651,12.56412778,173.05,172.99,117.1]
[1748147784652,26.0,173.07,172.99,117.1]
[1748147784854,12.56412778,173.05,172.99,117.1]
[1748147785255,30.13631969,173.08,172.99,117.1]
[1748147785456,12.56412778,173.05,172.99,117.1]
[1748147786151,30.13631969,173.08,172.99,117.1]
[1748147786371,12.56412778,173.06,172.99,117.1]
[1748147786934,38.56412778,173.07,172.99,117.1]
[1748147787244,12.56412778,173.07,172.99,117.1]
[1748147787472,42.70044747,173.08,173.0,83.04]
[1748147787755,16.70044747,173.08,173.0,119.14]
[1748147787926,16.70044747,173.08,173.0,36.1]
[1748147788241,16.70044747,173.08,172.99,117.1]
[1748147789767,4.13631969,173.08,173.0,6.6104]
[1748147789933,42.70044747,173.09,173.0,6.6104]
[1748147790132,42.70044747,173.09,173.0,89.1104]
[1748147791765,30.13631969,173.09,173.0,89.1104]
[1748147792063,12.56412778,173.08,173.0,89.1104]
[1748147793252,26.0,173.09,173.0,89.1104]
[1748147793434,12.56412778,173.08,173.0,89.1104]
[1748147794563,12.56412778,173.07,173.0,89.1104]
[1748147794753,12.56412778,173.05,173.0,82.5]
[1748147794946,12.56412778,173.05,173.01,34.6]
[1748147795145,12.56412778,173.06,173.01,34.6]
[1748147797484,12.56412778,173.06,173.02,119.12]
[1748147797777,12.56412778,173.05,173.02,119.12]
[1748147797978,12.56412778,173.05,173.02,36.1]
[1748147799980,12.56412778,173.05,173.01,117.1]
[1748147800479,12.56412778,173.06,173.01,117.1]
[1748147800992,12.56412778,173.05,173.01,117.1]
[1748147801283,12.56412778,173.04,173.02,34.6]
[1748147801494,12.56412778,173.05,173.02,34.6]
[1748147801673,12.56412778,173.06,173.02,34.6]
[1748147802360,12.56412778,173.07,173.02,34.6]
[1748147802690,38.56412778,173.07,173.02,117.1]
[1748147803788,12.56412778,173.06,173.02,117.1]
[1748147804006,12.56412778,173.05,173.02,117.1]
[1748147804479,38.56412778,173.07,173.02,117.1]
[1748147807572,38.56412778,173.07,173.03,119.12]
[1748147808387,38.56412778,173.07,173.03,201.62]
[1748147808992,12.56412778,173.06,173.03,201.62]
[1748147809198,12.56412778,173.05,173.03,201.62]
[1748147810388,26.0,173.07,173.03,201.62]
[1748147810694,12.56412778,173.06,173.03,82.5]
[1748147811979,12.56412778,173.05,173.03,82.5]
[1748147814278,12.56412778,173.05,173.02,117.1]
[1748147814595,12.56412778,173.04,173.03,34.6]
[1748147815629,12.56412778,173.04,172.97,84.1202]
[1748147815794,12.56412778,172.99,172.98,34.6]
[1748147816000,12.56412778,172.99,172.98,117.1]
[1748147816534,12.56412778,173.0,172.98,117.1]
[1748147817528,12.56412778,173.0,172.99,119.12]
[1748147818110,12.56412778,173.0,172.99,153.72]
[1748147821221,4.13631969,173.03,172.99,153.72]
[1748147821411,12.56412778,173.0,172.99,153.72]
[1748147822030,12.56412778,173.0,172.99,70.7]
[1748147823410,4.13631969,173.02,172.99,36.1153]
[1748147824324,30.13631969,173.08,173.0,34.6]
[1748147824532,12.56412778,173.03,172.99,1.5153]
[1748147824734,12.56412778,173.03,173.01,34.6]
[1748147825330,12.56412778,173.04,173.01,34.6]
[1748147827533,12.56412778,173.04,173.02,119.12]
[1748147828234,12.56412778,173.03,173.02,119.12]
[1748147828937,12.56412778,173.03,173.02,36.08]
[1748147831417,12.56412778,173.04,173.02,36.08]
[1748147833136,12.56412778,173.04,173.01,117.1]
[1748147834347,4.13631969,173.06,173.01,117.1]
[1748147834537,12.56412778,173.05,173.01,117.1]
[1748147834849,4.13631969,173.06,173.01,117.1]
[1748147835440,12.56412778,173.07,173.01,117.1]
[1748147837750,12.56412778,173.07,173.02,119.1]
[1748147840448,12.56412778,173.08,173.02,119.1]
[1748147840633,12.56412778,173.08,173.01,117.1]
[1748147840834,12.56412778,173.08,173.02,82.5]
[1748147841344,30.13631969,173.09,173.02,82.5]
[1748147841551,12.56412778,173.08,173.02,82.5]
[1748147843445,12.56412778,173.07,173.02,82.5]
[1748147844751,12.56412778,173.06,173.02,82.5]
[1748147846431,12.56412778,173.08,173.02,82.5]